[Event "December 5 Early 2023"]
[Site "https://www.chess.com"]
[Date "2023.12.05"]
[Round "5"]
[White "Ginzburg, Yakov"]
[Black "Melikhov, Evgeny V."]
[Result "0-1"]
[Board "160"]
[TimeControl "180+1"]
[WhiteFideId "4157176"]
[BlackFideId "4122046"]
[WhiteElo "2578"]
[BlackElo "2362"]
[WhiteTeam "RUS"]
[BlackTeam "GRE"]
[WhiteClock "0:00:10"]
[BlackClock "0:01:20"]

1. d4 {[%clk 0:03:00]}  Nf6 {[%clk 0:02:59]} 2. Nf3 {[%clk 0:02:59]}  d5 {[%clk 0:02:59]} 3. c4 {[%clk 0:02:59]}  e6 {[%clk 0:02:59]} 4. g3 {[%clk 0:02:59]}  dxc4 {[%clk 0:02:59]} 5. Bg2 {[%clk 0:03:00]}  Nc6 {[%clk 0:02:59]} 6. O-O {[%clk 0:02:59]}  Rb8 {[%clk 0:02:57]} 7. Ne5 {[%clk 0:02:59]}  Nxe5 {[%clk 0:02:36]} 8. dxe5 {[%clk 0:03:00]}  Nd7 {[%clk 0:02:36]} 9. Qa4 {[%clk 0:02:19]}  a6 {[%clk 0:02:34]} 10. Rd1 {[%clk 0:01:52]}  Be7 {[%clk 0:02:33]} 11. Qxc4 {[%clk 0:01:50]}  O-O {[%clk 0:02:32]} 12. Qc2 {[%clk 0:01:43]}  c5 {[%clk 0:02:19]} 13. Nc3 {[%clk 0:01:42]}  Qc7 {[%clk 0:02:17]} 14. f3 {[%clk 0:01:42]}  Nxe5 {[%clk 0:02:07]} 15. f4 {[%clk 0:01:38]}  Nc6 {[%clk 0:02:01]} 16. Be3 {[%clk 0:01:25]}  b6 {[%clk 0:01:52]} 17. f5 {[%clk 0:01:05]}  Bb7 {[%clk 0:01:43]} 18. fxe6 {[%clk 0:01:02]}  fxe6 {[%clk 0:01:41]} 19. Bh3 {[%clk 0:00:51]}  Nb4 {[%clk 0:01:32]} 20. Qd2 {[%clk 0:00:31]}  Qc6 {[%clk 0:01:26]} 21. Bxe6+ {[%clk 0:00:17]}  Qxe6 {[%clk 0:01:22]} 22. Bf4 {[%clk 0:00:10]}  Rbd8 {[%clk 0:01:20]} 0-1

[Event "December 5 Early 2023"]
[Site "https://www.chess.com"]
[Date "2023.12.05"]
[Round "5"]
[White "Yezhel, Valiantsin"]
[Black "Kolmagorov, Alexey"]
[Result "0-1"]
[Board "161"]
[TimeControl "180+1"]
[WhiteFideId "13504983"]
[BlackFideId "34129402"]
[WhiteElo "2573"]
[BlackElo "2356"]
[WhiteTeam "FID"]
[BlackTeam "RUS"]
[WhiteClock "0:01:13"]
[BlackClock "0:00:10"]

1. g4 {[%clk 0:02:55]}  d5 {[%clk 0:02:57]} 2. Bg2 {[%clk 0:02:55]}  c6 {[%clk 0:02:57]} 3. h3 {[%clk 0:02:53]}  e5 {[%clk 0:02:53]} 4. d4 {[%clk 0:02:53]}  e4 {[%clk 0:02:52]} 5. c4 {[%clk 0:02:54]}  Bd6 {[%clk 0:02:46]} 6. Nc3 {[%clk 0:02:53]}  Ne7 {[%clk 0:02:45]} 7. Qb3 {[%clk 0:02:51]}  h5 {[%clk 0:02:36]} 8. g5 {[%clk 0:02:46]}  a6 {[%clk 0:02:17]} 9. cxd5 {[%clk 0:02:46]}  cxd5 {[%clk 0:02:17]} 10. h4 {[%clk 0:02:40]}  Nbc6 {[%clk 0:02:14]} 11. e3 {[%clk 0:02:40]}  Na5 {[%clk 0:02:07]} 12. Qd1 {[%clk 0:02:38]}  Bg4 {[%clk 0:02:00]} 13. Nge2 {[%clk 0:02:38]}  Qd7 {[%clk 0:01:54]} 14. Qa4 {[%clk 0:02:32]}  Nac6 {[%clk 0:01:48]} 15. Bd2 {[%clk 0:02:27]}  O-O {[%clk 0:01:45]} 16. a3 {[%clk 0:01:56]}  b5 {[%clk 0:01:44]} 17. Qd1 {[%clk 0:01:56]}  Rfb8 {[%clk 0:01:32]} 18. Na2 {[%clk 0:01:41]}  a5 {[%clk 0:01:27]} 19. Rc1 {[%clk 0:01:38]}  b4 {[%clk 0:01:25]} 20. a4 {[%clk 0:01:37]}  b3 {[%clk 0:01:20]} 21. Nac3 {[%clk 0:01:35]}  Nb4 {[%clk 0:01:20]} 22. O-O {[%clk 0:01:34]}  Nd3 {[%clk 0:01:14]} 23. Rb1 {[%clk 0:01:32]}  Nf5 {[%clk 0:00:56]} 24. f3 {[%clk 0:01:28]}  exf3 {[%clk 0:00:52]} 25. Bxf3 {[%clk 0:01:28]}  Nxh4 {[%clk 0:00:46]} 26. Nf4 {[%clk 0:01:20]}  Bxf3 {[%clk 0:00:34]} 27. Rxf3 {[%clk 0:01:20]}  Qg4+ {[%clk 0:00:28]} 28. Kf1 {[%clk 0:01:18]}  Nxf3 {[%clk 0:00:21]} 29. Ncxd5 {[%clk 0:01:13]}  Nh2# {[%clk 0:00:10]} 0-1

[Event "December 5 Early 2023"]
[Site "https://www.chess.com"]
[Date "2023.12.05"]
[Round "5"]
[White "Iskusnyh, Sergei"]
[Black "Buscar, Michael"]
[Result "1-0"]
[Board "163"]
[TimeControl "180+1"]
[WhiteFideId "4120027"]
[BlackFideId "2603616"]
[WhiteElo "2539"]
[BlackElo "2346"]
[WhiteTeam "RUS"]
[BlackTeam "CAN"]
[WhiteClock "0:00:32"]
[BlackClock "0:00:00"]

1. d4 {[%clk 0:02:59]}  d5 {[%clk 0:02:57]} 2. c4 {[%clk 0:02:59]}  e6 {[%clk 0:02:54]} 3. Nf3 {[%clk 0:02:58]}  c5 {[%clk 0:02:53]} 4. cxd5 {[%clk 0:02:58]}  exd5 {[%clk 0:02:53]} 5. g3 {[%clk 0:02:58]}  Nc6 {[%clk 0:02:53]} 6. Bg2 {[%clk 0:02:49]}  Nf6 {[%clk 0:02:53]} 7. O-O {[%clk 0:02:47]}  Be7 {[%clk 0:02:53]} 8. dxc5 {[%clk 0:02:45]}  Bxc5 {[%clk 0:02:54]} 9. a3 {[%clk 0:02:40]}  O-O {[%clk 0:02:52]} 10. b4 {[%clk 0:02:36]}  Be7 {[%clk 0:02:53]} 11. Nc3 {[%clk 0:02:33]}  Bg4 {[%clk 0:02:27]} 12. Bb2 {[%clk 0:02:33]}  Rc8 {[%clk 0:02:14]} 13. Rc1 {[%clk 0:02:31]}  Qd6 {[%clk 0:01:28]} 14. Nb5 {[%clk 0:02:12]}  Qe6 {[%clk 0:01:07]} 15. Nbd4 {[%clk 0:02:11]}  Nxd4 {[%clk 0:00:53]} 16. Nxd4 {[%clk 0:02:10]}  Qd7 {[%clk 0:00:52]} 17. Qd3 {[%clk 0:02:07]}  Bh3 {[%clk 0:00:44]} 18. Bxh3 {[%clk 0:02:06]}  Qxh3 {[%clk 0:00:45]} 19. Qf5 {[%clk 0:02:06]}  Ng4 {[%clk 0:00:38]} 20. Nf3 {[%clk 0:02:05]}  Nxf2 {[%clk 0:00:32]} 21. Qxd5 {[%clk 0:01:31]}  Rxc1 {[%clk 0:00:25]} 22. Rxc1 {[%clk 0:01:26]}  Ng4 {[%clk 0:00:21]} 23. Qf5 {[%clk 0:01:23]}  g6 {[%clk 0:00:14]} 24. Qe4 {[%clk 0:01:22]}  Bf6 {[%clk 0:00:13]} 25. Bxf6 {[%clk 0:01:18]}  Nxf6 {[%clk 0:00:13]} 26. Qf4 {[%clk 0:01:16]}  Qe6 {[%clk 0:00:12]} 27. Qe5 {[%clk 0:01:13]}  Qb6+ {[%clk 0:00:12]} 28. Qc5 {[%clk 0:01:12]}  Qa6 {[%clk 0:00:11]} 29. b5 {[%clk 0:01:07]}  Qa5 {[%clk 0:00:10]} 30. Qc3 {[%clk 0:01:05]}  Qb6+ {[%clk 0:00:10]} 31. Qd4 {[%clk 0:01:05]}  Qe6 {[%clk 0:00:08]} 32. Qe5 {[%clk 0:01:03]}  Qb6+ {[%clk 0:00:08]} 33. Qc5 {[%clk 0:01:03]}  Qe6 {[%clk 0:00:08]} 34. Nd4 {[%clk 0:00:57]}  Qe3+ {[%clk 0:00:07]} 35. Kf1 {[%clk 0:00:54]}  Ne4 {[%clk 0:00:07]} 36. Nf5 {[%clk 0:00:39]}  Nd2+ {[%clk 0:00:03]} 37. Ke1 {[%clk 0:00:38]}  Nf3+ {[%clk 0:00:03]} 38. Kf1 {[%clk 0:00:36]}  Nxh2+ {[%clk 0:00:03]} 39. Kg2 {[%clk 0:00:33]}  Qxe2+ {[%clk 0:00:02]} 40. Kh3 {[%clk 0:00:33]}  gxf5 {[%clk 0:00:00]} 41. Qxf5 {[%clk 0:00:32]} 1-0

[Event "December 5 Early 2023"]
[Site "https://www.chess.com"]
[Date "2023.12.05"]
[Round "5"]
[White "Rogov, Matfey"]
[Black "Mohammed, Zozek Salah Mohammed"]
[Result "0-1"]
[Board "164"]
[TimeControl "180+1"]
[WhiteFideId "44191308"]
[BlackFideId "4803361"]
[WhiteElo "2534"]
[BlackElo "2334"]
[WhiteTeam "RUS"]
[BlackTeam "IRQ"]
[WhiteClock "0:00:03"]
[BlackClock "0:01:04"]

1. e4 {[%clk 0:03:00]}  e6 {[%clk 0:02:57]} 2. d4 {[%clk 0:03:00]}  d5 {[%clk 0:02:56]} 3. Nc3 {[%clk 0:03:01]}  Nf6 {[%clk 0:02:55]} 4. e5 {[%clk 0:03:01]}  Nfd7 {[%clk 0:02:54]} 5. f4 {[%clk 0:02:58]}  c5 {[%clk 0:02:55]} 6. Nf3 {[%clk 0:02:59]}  Nc6 {[%clk 0:02:56]} 7. Be3 {[%clk 0:02:58]}  a6 {[%clk 0:02:56]} 8. Qd2 {[%clk 0:02:52]}  b5 {[%clk 0:02:56]} 9. dxc5 {[%clk 0:02:51]}  Bxc5 {[%clk 0:02:54]} 10. h4 {[%clk 0:02:47]}  Qb6 {[%clk 0:02:54]} 11. Bxc5 {[%clk 0:02:44]}  Nxc5 {[%clk 0:02:55]} 12. a3 {[%clk 0:02:33]}  b4 {[%clk 0:02:46]} 13. axb4 {[%clk 0:02:32]}  Nxb4 {[%clk 0:02:47]} 14. Na4 {[%clk 0:01:58]}  Nxa4 {[%clk 0:02:45]} 15. Rxa4 {[%clk 0:01:59]}  a5 {[%clk 0:02:45]} 16. c3 {[%clk 0:01:58]}  Na6 {[%clk 0:02:34]} 17. Bd3 {[%clk 0:01:13]}  Nc5 {[%clk 0:02:32]} 18. Ra2 {[%clk 0:00:53]}  Qb3 {[%clk 0:02:28]} 19. Bb1 {[%clk 0:00:39]}  Ne4 {[%clk 0:02:19]} 20. Qc2 {[%clk 0:00:23]}  Qb6 {[%clk 0:02:16]} 21. Qa4+ {[%clk 0:00:22]}  Bd7 {[%clk 0:02:13]} 22. Qd4 {[%clk 0:00:23]}  Qb3 {[%clk 0:02:02]} 23. O-O {[%clk 0:00:21]}  O-O {[%clk 0:01:55]} 24. Ng5 {[%clk 0:00:17]}  Nxg5 {[%clk 0:01:43]} 25. hxg5 {[%clk 0:00:18]}  Rfb8 {[%clk 0:01:33]} 26. Rf3 {[%clk 0:00:13]}  Qb6 {[%clk 0:01:32]} 27. Qxb6 {[%clk 0:00:09]}  Rxb6 {[%clk 0:01:33]} 28. Rh3 {[%clk 0:00:09]}  g6 {[%clk 0:01:33]} 29. Rd3 {[%clk 0:00:07]}  Bb5 {[%clk 0:01:29]} 30. Rd2 {[%clk 0:00:06]}  Bc4 {[%clk 0:01:30]} 31. Ra3 {[%clk 0:00:05]}  a4 {[%clk 0:01:28]} 32. Ba2 {[%clk 0:00:03]}  Bb3 {[%clk 0:01:22]} 33. Bxb3 {[%clk 0:00:03]}  Rxb3 {[%clk 0:01:22]} 34. Rxb3 {[%clk 0:00:03]}  axb3 {[%clk 0:01:23]} 35. Rd4 {[%clk 0:00:04]}  Ra2 {[%clk 0:01:22]} 36. Rb4 {[%clk 0:00:04]}  Rxb2 {[%clk 0:01:22]} 37. Kh2 {[%clk 0:00:04]}  Kg7 {[%clk 0:01:22]} 38. Rb7 {[%clk 0:00:04]}  Rf2 {[%clk 0:01:18]} 39. Kg3 {[%clk 0:00:04]}  Rb2 {[%clk 0:01:18]} 40. Kh3 {[%clk 0:00:03]}  h6 {[%clk 0:01:15]} 41. gxh6+ {[%clk 0:00:03]}  Kxh6 {[%clk 0:01:15]} 42. Rxf7 {[%clk 0:00:02]}  Rc2 {[%clk 0:01:16]} 43. Rb7 {[%clk 0:00:02]}  Rxc3+ {[%clk 0:01:16]} 44. Kh4 {[%clk 0:00:02]}  Rc4 {[%clk 0:01:09]} 45. g4 {[%clk 0:00:03]}  Rxf4 {[%clk 0:01:08]} 46. Rxb3 {[%clk 0:00:03]}  Re4 {[%clk 0:01:08]} 47. Rb6 {[%clk 0:00:02]}  Rxe5 {[%clk 0:01:08]} 48. Rb7 {[%clk 0:00:02]}  Re4 {[%clk 0:01:06]} 49. Kg3 {[%clk 0:00:02]}  Kg5 {[%clk 0:01:05]} 50. Re7 {[%clk 0:00:03]}  Rxg4+ {[%clk 0:01:05]} 51. Kf3 {[%clk 0:00:04]}  Re4 {[%clk 0:01:05]} 52. Kg3 {[%clk 0:00:04]}  Re3+ {[%clk 0:01:04]} 53. Kf2 {[%clk 0:00:04]}  d4 {[%clk 0:01:04]} 54. Rxe6 {[%clk 0:00:03]}  Rxe6 {[%clk 0:01:04]} 0-1

[Event "December 5 Early 2023"]
[Site "https://www.chess.com"]
[Date "2023.12.05"]
[Round "5"]
[White "Tao, Sihan"]
[Black "IranianCheetah"]
[Result "1-0"]
[Board "166"]
[TimeControl "180+1"]
[WhiteFideId "30982677"]
[WhiteElo "2528"]
[BlackElo "2327"]
[WhiteTeam "USA"]
[WhiteClock "0:01:44"]
[BlackClock "0:00:00"]

1. e4 {[%clk 0:03:00]}  e5 {[%clk 0:03:00]} 2. Nf3 {[%clk 0:02:59]}  Nc6 {[%clk 0:03:00]} 3. Bb5 {[%clk 0:02:59]}  a6 {[%clk 0:03:00]} 4. Ba4 {[%clk 0:02:59]}  Nf6 {[%clk 0:03:01]} 5. O-O {[%clk 0:02:59]}  Be7 {[%clk 0:03:01]} 6. Bxc6 {[%clk 0:02:58]}  dxc6 {[%clk 0:03:02]} 7. Re1 {[%clk 0:02:58]}  Bg4 {[%clk 0:02:40]} 8. h3 {[%clk 0:02:57]}  Bh5 {[%clk 0:02:40]} 9. d3 {[%clk 0:02:56]}  Bc5 {[%clk 0:02:31]} 10. Be3 {[%clk 0:02:55]}  Bxe3 {[%clk 0:02:26]} 11. Rxe3 {[%clk 0:02:56]}  Qe7 {[%clk 0:02:13]} 12. Qd2 {[%clk 0:02:53]}  O-O {[%clk 0:02:06]} 13. Qc3 {[%clk 0:02:51]}  Nd7 {[%clk 0:02:02]} 14. Nbd2 {[%clk 0:02:49]}  f6 {[%clk 0:01:53]} 15. Nf1 {[%clk 0:02:36]}  Bxf3 {[%clk 0:01:37]} 16. Rxf3 {[%clk 0:02:35]}  Nc5 {[%clk 0:01:30]} 17. Nd2 {[%clk 0:02:28]}  Ne6 {[%clk 0:01:27]} 18. Re3 {[%clk 0:02:28]}  Kh8 {[%clk 0:01:26]} 19. Nf3 {[%clk 0:02:28]}  c5 {[%clk 0:01:23]} 20. Ree1 {[%clk 0:02:20]}  b5 {[%clk 0:01:22]} 21. a4 {[%clk 0:02:18]}  c6 {[%clk 0:01:22]} 22. axb5 {[%clk 0:02:13]}  cxb5 {[%clk 0:01:18]} 23. Ra5 {[%clk 0:02:11]}  Qd6 {[%clk 0:01:05]} 24. Rea1 {[%clk 0:02:09]}  Nc7 {[%clk 0:00:57]} 25. Nd2 {[%clk 0:02:06]}  f5 {[%clk 0:00:52]} 26. exf5 {[%clk 0:02:04]}  Rxf5 {[%clk 0:00:51]} 27. Ne4 {[%clk 0:02:04]}  Qg6 {[%clk 0:00:25]} 28. Qxc5 {[%clk 0:02:04]}  Ne6 {[%clk 0:00:23]} 29. Qc6 {[%clk 0:02:03]}  Raf8 {[%clk 0:00:16]} 30. Rxa6 {[%clk 0:02:03]}  Nf4 {[%clk 0:00:11]} 31. Qxg6 {[%clk 0:02:00]}  hxg6 {[%clk 0:00:12]} 32. Ra8 {[%clk 0:02:01]}  Kh7 {[%clk 0:00:12]} 33. Rxf8 {[%clk 0:01:59]}  Rxf8 {[%clk 0:00:12]} 34. Ra5 {[%clk 0:01:58]}  Rc8 {[%clk 0:00:11]} 35. Rxb5 {[%clk 0:01:56]}  Rxc2 {[%clk 0:00:11]} 36. Rxe5 {[%clk 0:01:56]}  Nxd3 {[%clk 0:00:10]} 37. Re7 {[%clk 0:01:55]}  Rxb2 {[%clk 0:00:09]} 38. f3 {[%clk 0:01:54]}  Rb1+ {[%clk 0:00:09]} 39. Kh2 {[%clk 0:01:55]}  Kh6 {[%clk 0:00:08]} 40. Re8 {[%clk 0:01:54]}  g5 {[%clk 0:00:08]} 41. Re6+ {[%clk 0:01:54]}  g6 {[%clk 0:00:04]} 42. Re8 {[%clk 0:01:53]}  Nf4 {[%clk 0:00:04]} 43. Rf8 {[%clk 0:01:51]}  Rb2 {[%clk 0:00:04]} 44. h4 {[%clk 0:01:46]}  Rxg2+ {[%clk 0:00:03]} 45. Kh1 {[%clk 0:01:47]}  Ra2 {[%clk 0:00:01]} 46. hxg5+ {[%clk 0:01:47]}  Kg7 {[%clk 0:00:02]} 47. Rxf4 {[%clk 0:01:45]}  Rb2 {[%clk 0:00:01]} 48. Kg1 {[%clk 0:01:44]}  Ra2 {[%clk 0:00:01]} 49. Nf2 {[%clk 0:01:45]}  Ra5 {[%clk 0:00:01]} 50. Rg4 {[%clk 0:01:45]}  Ra4 {[%clk 0:00:00]} 51. Rxa4 {[%clk 0:01:44]} 1-0

[Event "December 5 Early 2023"]
[Site "https://www.chess.com"]
[Date "2023.12.05"]
[Round "5"]
[White "titledsquirrel2007"]
[Black "Grutter, Tim"]
[Result "1-0"]
[Board "167"]
[TimeControl "180+1"]
[BlackFideId "1057472"]
[WhiteElo "2319"]
[BlackElo "2526"]
[BlackTeam "NED"]
[WhiteClock "0:01:19"]
[BlackClock "0:00:00"]

1. Nf3 {[%clk 0:03:00]}  g6 {[%clk 0:02:56]} 2. d4 {[%clk 0:02:58]}  Bg7 {[%clk 0:02:56]} 3. g3 {[%clk 0:02:58]}  d6 {[%clk 0:02:57]} 4. Bg2 {[%clk 0:02:59]}  h5 {[%clk 0:02:54]} 5. h4 {[%clk 0:02:57]}  Bg4 {[%clk 0:02:54]} 6. c4 {[%clk 0:02:56]}  Nc6 {[%clk 0:02:53]} 7. Nc3 {[%clk 0:02:56]}  Qc8 {[%clk 0:02:49]} 8. d5 {[%clk 0:02:53]}  Ne5 {[%clk 0:02:43]} 9. Nxe5 {[%clk 0:02:53]}  Bxe5 {[%clk 0:02:44]} 10. Qc2 {[%clk 0:02:45]}  Nf6 {[%clk 0:02:34]} 11. f4 {[%clk 0:02:37]}  Bd4 {[%clk 0:02:25]} 12. e3 {[%clk 0:02:30]}  Bb6 {[%clk 0:02:18]} 13. Na4 {[%clk 0:02:23]}  Ba5+ {[%clk 0:02:00]} 14. Bd2 {[%clk 0:02:23]}  Bf5 {[%clk 0:01:59]} 15. e4 {[%clk 0:02:18]}  Bxd2+ {[%clk 0:01:58]} 16. Kxd2 {[%clk 0:02:17]}  Bd7 {[%clk 0:01:56]} 17. Rae1 {[%clk 0:02:16]}  Ng4 {[%clk 0:01:50]} 18. Nc3 {[%clk 0:02:15]}  O-O {[%clk 0:01:46]} 19. e5 {[%clk 0:02:15]}  Bf5 {[%clk 0:01:43]} 20. Be4 {[%clk 0:02:09]}  Bxe4 {[%clk 0:01:40]} 21. Nxe4 {[%clk 0:02:06]}  dxe5 {[%clk 0:01:38]} 22. Ng5 {[%clk 0:01:58]}  exf4 {[%clk 0:01:30]} 23. Rxe7 {[%clk 0:01:54]}  fxg3 {[%clk 0:01:06]} 24. Nxf7 {[%clk 0:01:46]}  Qf5 {[%clk 0:00:26]} 25. Qxf5 {[%clk 0:01:46]}  gxf5 {[%clk 0:00:26]} 26. Ng5 {[%clk 0:01:45]}  Rae8 {[%clk 0:00:20]} 27. Rxc7 {[%clk 0:01:42]}  f4 {[%clk 0:00:17]} 28. Ne6 {[%clk 0:01:41]}  g2 {[%clk 0:00:14]} 29. Rg1 {[%clk 0:01:40]}  f3 {[%clk 0:00:14]} 30. Rg7+ {[%clk 0:01:32]}  Kh8 {[%clk 0:00:14]} 31. Rg5 {[%clk 0:01:32]}  f2 {[%clk 0:00:09]} 32. Rxh5+ {[%clk 0:01:32]}  Kg8 {[%clk 0:00:09]} 33. Rxg2 {[%clk 0:01:33]}  f1=Q {[%clk 0:00:05]} 34. Rxg4+ {[%clk 0:01:33]}  Kf7 {[%clk 0:00:06]} 35. Rf4+ {[%clk 0:01:30]}  Qxf4+ {[%clk 0:00:05]} 36. Nxf4 {[%clk 0:01:31]}  Kf6 {[%clk 0:00:04]} 37. Ne6 {[%clk 0:01:29]}  Rh8 {[%clk 0:00:04]} 38. Rxh8 {[%clk 0:01:27]}  Rxh8 {[%clk 0:00:05]} 39. Nc5 {[%clk 0:01:27]}  b6 {[%clk 0:00:04]} 40. Ne4+ {[%clk 0:01:27]}  Ke5 {[%clk 0:00:04]} 41. Ng5 {[%clk 0:01:23]}  Kf5 {[%clk 0:00:00]} 42. Nf7 {[%clk 0:01:19]} 1-0

[Event "December 5 Early 2023"]
[Site "https://www.chess.com"]
[Date "2023.12.05"]
[Round "5"]
[White "Khamdamova, Afruza"]
[Black "Gutkin, Ilya"]
[Result "1-0"]
[Board "168"]
[TimeControl "180+1"]
[WhiteFideId "14210444"]
[BlackFideId "16203470"]
[WhiteElo "2525"]
[BlackElo "2318"]
[WhiteTeam "UZB"]
[BlackTeam "GER"]
[WhiteClock "0:00:04"]
[BlackClock "0:00:00"]

1. e4 {[%clk 0:03:00]}  e5 {[%clk 0:03:00]} 2. Nf3 {[%clk 0:03:00]}  Nc6 {[%clk 0:03:00]} 3. Bb5 {[%clk 0:03:01]}  Nf6 {[%clk 0:03:00]} 4. d3 {[%clk 0:03:00]}  Bc5 {[%clk 0:02:59]} 5. O-O {[%clk 0:02:58]}  d6 {[%clk 0:02:52]} 6. c3 {[%clk 0:02:56]}  O-O {[%clk 0:02:52]} 7. Nbd2 {[%clk 0:02:53]}  Bg4 {[%clk 0:02:48]} 8. h3 {[%clk 0:02:52]}  Bh5 {[%clk 0:02:48]} 9. Re1 {[%clk 0:02:50]}  a6 {[%clk 0:02:39]} 10. Ba4 {[%clk 0:02:48]}  b5 {[%clk 0:02:38]} 11. Bc2 {[%clk 0:02:48]}  Re8 {[%clk 0:02:34]} 12. Nf1 {[%clk 0:02:48]}  d5 {[%clk 0:02:30]} 13. Ng3 {[%clk 0:02:43]}  dxe4 {[%clk 0:02:21]} 14. Nxh5 {[%clk 0:02:12]}  exf3 {[%clk 0:02:20]} 15. Qxf3 {[%clk 0:02:11]}  Nxh5 {[%clk 0:02:20]} 16. Qxh5 {[%clk 0:02:08]}  g6 {[%clk 0:02:10]} 17. Qf3 {[%clk 0:02:04]}  Qd7 {[%clk 0:02:03]} 18. Bb3 {[%clk 0:01:47]}  Rad8 {[%clk 0:01:48]} 19. Bg5 {[%clk 0:01:44]}  Rc8 {[%clk 0:01:27]} 20. Rad1 {[%clk 0:01:40]}  Na5 {[%clk 0:01:13]} 21. Bc2 {[%clk 0:01:37]}  Bf8 {[%clk 0:01:06]} 22. b4 {[%clk 0:01:17]}  Nc6 {[%clk 0:01:03]} 23. Bb3 {[%clk 0:01:17]}  Nd8 {[%clk 0:00:47]} 24. d4 {[%clk 0:01:04]}  exd4 {[%clk 0:00:42]} 25. Rxe8 {[%clk 0:01:04]}  Qxe8 {[%clk 0:00:41]} 26. Rxd4 {[%clk 0:00:56]}  Ne6 {[%clk 0:00:39]} 27. Rd5 {[%clk 0:00:17]}  Nxg5 {[%clk 0:00:36]} 28. Rxg5 {[%clk 0:00:17]}  Rd8 {[%clk 0:00:24]} 29. g3 {[%clk 0:00:17]}  Bg7 {[%clk 0:00:16]} 30. Kg2 {[%clk 0:00:15]}  Qe7 {[%clk 0:00:13]} 31. Rg4 {[%clk 0:00:14]}  Rd7 {[%clk 0:00:11]} 32. Re4 {[%clk 0:00:14]}  Qf8 {[%clk 0:00:06]} 33. Qe3 {[%clk 0:00:12]}  Rd8 {[%clk 0:00:06]} 34. Re7 {[%clk 0:00:12]}  Bh6 {[%clk 0:00:02]} 35. Qe4 {[%clk 0:00:11]}  Qg7 {[%clk 0:00:03]} 36. Rxf7 {[%clk 0:00:08]}  Qxc3 {[%clk 0:00:03]} 37. Re7+ {[%clk 0:00:04]}  Kh8 {[%clk 0:00:00]} 38. Qe6 {[%clk 0:00:04]} 1-0

[Event "December 5 Early 2023"]
[Site "https://www.chess.com"]
[Date "2023.12.05"]
[Round "5"]
[White "Korol, Dimitry"]
[Black "Chylewski, Patryk"]
[Result "0-1"]
[Board "169"]
[TimeControl "180+1"]
[WhiteFideId "14108003"]
[BlackFideId "1186191"]
[WhiteElo "2312"]
[BlackElo "2524"]
[WhiteTeam "UKR"]
[BlackTeam "POL"]
[WhiteClock "0:00:00"]
[BlackClock "0:00:46"]

1. d4 {[%clk 0:03:00]}  f5 {[%clk 0:02:57]} 2. c4 {[%clk 0:03:00]}  Nf6 {[%clk 0:02:56]} 3. Nf3 {[%clk 0:03:01]}  e6 {[%clk 0:02:56]} 4. g3 {[%clk 0:03:00]}  Bb4+ {[%clk 0:02:55]} 5. Bd2 {[%clk 0:03:00]}  Be7 {[%clk 0:02:50]} 6. Nc3 {[%clk 0:02:59]}  O-O {[%clk 0:02:44]} 7. Bg2 {[%clk 0:02:59]}  d6 {[%clk 0:02:44]} 8. O-O {[%clk 0:02:58]}  Qe8 {[%clk 0:02:44]} 9. Re1 {[%clk 0:02:53]}  Qg6 {[%clk 0:02:37]} 10. Qc2 {[%clk 0:02:26]}  Nc6 {[%clk 0:02:33]} 11. d5 {[%clk 0:02:15]}  exd5 {[%clk 0:02:27]} 12. Nxd5 {[%clk 0:02:08]}  Bd8 {[%clk 0:02:14]} 13. Bc3 {[%clk 0:01:56]}  Ne4 {[%clk 0:02:11]} 14. b4 {[%clk 0:01:16]}  Bd7 {[%clk 0:02:05]} 15. Bb2 {[%clk 0:00:58]}  Qf7 {[%clk 0:02:04]} 16. b5 {[%clk 0:00:41]}  Ne7 {[%clk 0:02:03]} 17. Nd2 {[%clk 0:00:37]}  Nxd5 {[%clk 0:01:56]} 18. cxd5 {[%clk 0:00:20]}  Nxd2 {[%clk 0:01:50]} 19. Qxd2 {[%clk 0:00:20]}  Bxb5 {[%clk 0:01:51]} 20. Qb4 {[%clk 0:00:19]}  Ba6 {[%clk 0:01:48]} 21. Rac1 {[%clk 0:00:16]}  f4 {[%clk 0:01:44]} 22. Bf3 {[%clk 0:00:15]}  b6 {[%clk 0:01:34]} 23. a4 {[%clk 0:00:13]}  Bc8 {[%clk 0:01:32]} 24. Qd4 {[%clk 0:00:12]}  Bf6 {[%clk 0:01:30]} 25. Qd2 {[%clk 0:00:12]}  Bd8 {[%clk 0:01:28]} 26. Rc2 {[%clk 0:00:10]}  Bf5 {[%clk 0:01:27]} 27. Rc4 {[%clk 0:00:11]}  fxg3 {[%clk 0:01:26]} 28. hxg3 {[%clk 0:00:11]}  Qg6 {[%clk 0:01:20]} 29. Rec1 {[%clk 0:00:10]}  Bd7 {[%clk 0:01:13]} 30. Kg2 {[%clk 0:00:10]}  Bg5 {[%clk 0:01:12]} 31. e3 {[%clk 0:00:08]}  Bd8 {[%clk 0:01:11]} 32. Be4 {[%clk 0:00:07]}  Qf7 {[%clk 0:01:11]} 33. f4 {[%clk 0:00:07]}  Bf5 {[%clk 0:01:10]} 34. Qd3 {[%clk 0:00:07]}  Bxe4+ {[%clk 0:01:06]} 35. Rxe4 {[%clk 0:00:08]}  Rc8 {[%clk 0:00:53]} 36. Re6 {[%clk 0:00:08]}  Bf6 {[%clk 0:00:50]} 37. Bxf6 {[%clk 0:00:07]}  gxf6 {[%clk 0:00:51]} 38. f5 {[%clk 0:00:06]}  Kh8 {[%clk 0:00:48]} 39. Rh1 {[%clk 0:00:06]}  Rg8 {[%clk 0:00:48]} 40. Qd4 {[%clk 0:00:05]}  Rcf8 {[%clk 0:00:47]} 41. Rh3 {[%clk 0:00:04]}  Qg7 {[%clk 0:00:46]} 42. Qe4 {[%clk 0:00:03]}  Rf7 {[%clk 0:00:47]} 43. Qd4 {[%clk 0:00:02]}  Rgf8 {[%clk 0:00:46]} 44. Qc3 {[%clk 0:00:02]}  Qg5 {[%clk 0:00:46]} 45. Qd4 {[%clk 0:00:01]}  Qxf5 {[%clk 0:00:46]} 46. Rh4 {[%clk 0:00:00]}  Qc2+ {[%clk 0:00:46]} 0-1